bitfinex-derivatives/quotes_SOLF0:USTF0_20250523
["timestamp","ask_amount","ask_price","bid_price","bid_amount"]
[1748004259014,193.8440244,177.38,177.24,184.38]
[1748004259315,5.6392,177.31,177.27,5.6401]
[1748004259717,0.04049661,177.31,177.27,0.03879511]
[1748004260414,9.661e-05,177.31,177.3,5.6392]
[1748004261520,9.661e-05,177.31,177.3,190.0192]
[1748004263624,9.661e-05,177.31,177.3,184.38]
[1748004264214,9.661e-05,177.31,177.3,190.0192]
[1748004267320,9.661e-05,177.31,177.27,0.03879511]
[1748004267926,9.661e-05,177.31,177.28,5.6398]
[1748004268122,9.661e-05,177.31,177.27,0.03879511]
[1748004268628,5.6392,177.3,177.27,5.67869511]
[1748004269329,5.6396,177.29,177.27,0.03879511]
[1748004269824,5.7188,177.3,177.27,0.03879511]
[1748004270025,5.7188,177.3,177.22,487.42]
[1748004271026,5.7188,177.3,177.22,594.56]
[1748004271326,5.7188,177.3,177.24,0.03772716]
[1748004271626,9.661e-05,177.31,177.24,0.03772716]
[1748004272323,9.661e-05,177.31,177.3,5.6392]
[1748004273033,9.661e-05,177.31,177.29,5.68068359]
[1748004273328,9.661e-05,177.31,177.29,0.04118359]
[1748004274120,9.661e-05,177.31,177.3,5.6392]
[1748004274830,9.661e-05,177.31,177.29,107.18118359]
[1748004275027,9.661e-05,177.31,177.29,0.04118359]
[1748004275227,9.661e-05,177.31,177.24,182.1]
[1748004275924,9.661e-05,177.31,177.3,5.6392]
[1748004280131,9.661e-05,177.31,177.29,0.03728237]
[1748004280728,5.6394,177.3,177.26,107.14]
[1748004281029,9.661e-05,177.31,177.23,5.6414]
[1748004281343,9.661e-05,177.31,177.18,182.1]
[1748004281632,0.04200484,177.26,177.23,0.04314057]
[1748004281831,182.14200484,177.26,177.13,594.36]
[1748004282028,3.7929,177.25,177.14,5.6443]
[1748004282234,3.7929,177.25,177.12,194.40830255]
[1748004282733,3.7929,177.25,177.16,5.6434]
[1748004283035,5.6423,177.21,177.19,0.03740758]
[1748004283336,0.03747058,177.22,177.19,0.03740758]
[1748004283535,5.67947058,177.22,177.19,0.03740758]
[1748004283837,0.03747058,177.22,177.19,0.03740758]
[1748004284939,0.03747058,177.22,177.21,5.6421]
[1748004285438,0.03747058,177.22,177.19,0.03740758]
[1748004285739,0.03747058,177.22,177.2,5.6422]
[1748004286037,0.03747058,177.22,177.19,0.03740758]
[1748004286336,0.03747058,177.22,177.19,5.68010758]
[1748004286536,0.03747058,177.22,177.19,0.03740758]
[1748004287039,0.03747058,177.22,177.19,5.68000758]
[1748004287435,0.03747058,177.22,177.19,0.03740758]
[1748004287738,0.03747058,177.22,177.2,5.6422]
[1748004288037,0.03747058,177.22,177.19,0.03740758]
[1748004288038,0.03747058,177.22,177.19,107.21740758]
[1748004288334,0.03747058,177.22,177.2,5.6424]
[1748004288530,0.03747058,177.22,177.19,107.21740758]
[1748004289335,5.8645,177.3,177.19,107.21740758]
[1748004289535,5.8645,177.3,177.19,107.18]
[1748004290240,0.03615613,177.26,177.23,0.03951815]
[1748004291238,0.03615613,177.26,177.25,5.6408]
[1748004292942,0.03615613,177.26,177.24,182.18]
[1748004293243,0.03615613,177.26,177.23,0.03951815]
[1748004293638,5.641,177.25,177.23,0.03951815]
[1748004293838,0.03615613,177.26,177.23,0.03951815]
[1748004294047,0.03615613,177.26,177.23,5.68091815]
[1748004294244,0.03615613,177.26,177.23,0.03951815]
[1748004294545,0.03615613,177.26,177.25,5.6408]
[1748004294844,0.03615613,177.26,177.23,0.03951815]
[1748004295741,0.03615613,177.26,177.25,5.6408]
[1748004296044,0.03615613,177.26,177.23,0.03951815]
[1748004296347,0.03615613,177.26,177.24,5.6411]
[1748004296541,0.03615613,177.26,177.23,0.03951815]
[1748004296843,0.03615613,177.26,177.16,287.12]
[1748004297149,179.94,177.29,177.16,179.94]
[1748004297343,5.6412,177.24,177.2,5.6421]
[1748004297645,179.94,177.29,177.16,179.94]
[1748004297946,5.642,177.22,177.21,0.03583821]
[1748004298947,5.6427,177.2,177.16,179.94]
[1748004299347,5.6427,177.2,177.17,5.6432]
[1748004299548,5.6428,177.19,177.16,179.94]
[1748004299848,0.03707891,177.19,177.16,179.94]
[1748004301045,0.03707891,177.19,177.11,107.2]
[1748004301249,5.6447,177.13,177.02,179.94]
[1748004301454,0.03951234,177.09,177.08,5.6462]
[1748004301747,0.03868938,177.1,177.03,107.2]
[1748004302147,0.03868938,177.1,177.09,5.6459]
[1748004302348,0.03868938,177.1,177.02,179.94]
[1748004302540,0.03868938,177.1,176.97,179.94]
[1748004302747,0.0359727,177.06,176.96,594.64]
[1748004303741,0.0359727,177.06,176.96,604.10152597]
[1748004304153,0.0359727,177.06,176.96,487.44]
[1748004304458,5.6828727,177.06,176.96,594.66]
[1748004304651,0.0359727,177.06,176.96,487.44]
[1748004304853,0.0359727,177.06,176.87,487.54]
[1748004305155,0.03975593,176.98,176.88,107.22]
[1748004305351,0.03975593,176.98,176.93,5.6509]
[1748004305860,0.03975593,176.98,176.85,2.9672]
[1748004305861,0.03975593,176.98,176.85,1.3959]
[1748004306149,0.03852084,176.93,176.83,7.11837852]
[1748004306360,9.49660726,176.9,176.83,7.11837852]
[1748004306560,5.6545,176.82,176.76,15.47267476]
[1748004306857,5.6545,176.82,176.81,35.7338596]
[1748004307664,122.41660726,176.82,176.76,15.47267476]
[1748004307850,180.06,176.81,176.76,15.47267476]
[1748004308252,107.26,176.82,176.76,15.47267476]
[1748004308451,180.06,176.81,176.75,5.6567]
[1748004308654,0.03989957,176.8,176.67,111.9528]
[1748004308855,0.03990747,176.75,176.69,9.49660726]
[1748004309057,180.06,176.84,176.69,9.49660726]
[1748004309358,180.18,176.86,176.67,111.9528]
[1748004309563,180.18,176.86,176.76,5.6564]
[1748004309754,180.18,176.86,176.67,126.39695159]
[1748004310061,180.18,176.86,176.75,0.03927938]
[1748004310062,0.03845614,176.78,176.75,0.03927938]
[1748004310360,180.21834204,176.78,176.75,0.04149561]
[1748004310556,185.87834204,176.78,176.67,5.6593]
[1748004310753,180.18,176.78,176.66,3.30981347]
[1748004311154,14.44415159,176.83,176.63,14.44415159]
[1748004311356,5.04762456,176.85,176.66,14.44415159]
[1748004311558,0.03633051,176.77,176.67,14.44415159]
[1748004312148,0.03633051,176.77,176.75,5.6567]
[1748004312351,0.03633051,176.77,176.7,107.32]
[1748004312568,0.04043726,176.75,176.7,107.32]
[1748004313363,0.04043726,176.75,176.74,5.6571]
[1748004313562,180.18,176.82,176.71,1.9359]
[1748004313762,180.18,176.82,176.75,5.6566]
[1748004313964,180.18,176.82,176.72,1.9024]
[1748004314159,180.18,176.82,176.67,109.3545]
[1748004314365,180.18,176.82,176.67,111.2569]
[1748004314571,0.03943925,176.76,176.73,0.03956759]
[1748004314764,180.29943925,176.76,176.73,0.03956759]
[1748004315264,5.6568,176.75,176.73,0.03956759]
[1748004315568,180.29943925,176.76,176.73,0.03956759]
[1748004316071,5.6571,176.74,176.73,0.03956759]
[1748004316265,5.69943925,176.76,176.55,194.76415159]
[1748004316464,180.32,176.75,176.62,1.8666]
[1748004316870,5.6577,176.73,176.67,5.6591]
[1748004317075,180.32,176.75,176.62,1.8666]
[1748004317278,0.03715876,176.7,176.62,1.8666]
[1748004317575,180.32,176.8,176.63,14.44415159]
[1748004317780,180.32,176.8,176.62,1.8666]
[1748004317781,180.32,176.83,176.67,14.44415159]
[1748004317982,5.6549,176.81,176.68,289.6289]
[1748004318183,493.60889034,176.86,176.68,289.6289]
[1748004318375,5.6548,176.82,176.75,5.6566]
[1748004318578,0.0405664,176.79,176.75,0.0360472]
[1748004318882,0.0405664,176.79,176.75,5.6927472]
[1748004319177,0.0405664,176.79,176.75,0.0360472]
[1748004319479,5.6541,176.84,176.76,5.6564]
[1748004319682,5.6541,176.84,176.76,1.8645]
[1748004319981,185.54889034,176.86,176.76,1.8645]
[1748004320387,0.04056428,176.83,176.79,0.03745088]
[1748004320583,107.44,176.95,176.79,0.03745088]
[1748004320886,180.38,176.96,176.81,14.44415159]
[1748004321083,180.38,176.96,176.81,180.38]
[1748004321488,0.03642289,176.9,176.89,5.652]
[1748004321681,0.03956672,176.91,176.88,0.04237073]
[1748004321883,0.04291892,176.91,176.88,0.04058951]
[1748004322083,5.16889034,176.99,176.88,0.04058951]
[1748004322275,5.16889034,176.99,176.87,180.38]
[1748004322583,5.6501,176.96,176.89,5.6523]
[1748004322781,5.16889034,176.99,176.87,180.38]
[1748004323181,0.03994049,176.95,176.91,0.04166416]
[1748004323887,5.16889034,176.99,176.91,0.04166416]
[1748004324185,180.34,177.05,176.91,14.48581575]
[1748004324384,180.34,177.05,176.91,14.44415159]
[1748004324583,180.34,177.05,176.88,107.46]
[1748004324981,0.03992951,176.98,176.95,0.04308258]
[1748004325187,0.04103248,176.98,176.95,0.04308258]
[1748004325788,180.34,177.05,176.95,0.04308258]
[1748004326884,0.03592082,177.02,176.95,0.04308258]
[1748004327095,0.03592082,177.02,176.97,0.04335607]
[1748004327880,5.68442082,177.02,176.97,0.04335607]
[1748004328495,0.03592082,177.02,176.97,0.04335607]
[1748004328887,0.03592082,177.02,176.98,5.6494]
[1748004329086,0.03592082,177.02,176.97,0.04335607]
[1748004330387,0.03592082,177.02,177.01,5.6485]
[1748004330592,667.58,177.11,176.97,0.04335607]
[1748004330796,667.58,177.11,176.95,1.9556]
[1748004331401,179.08,177.11,176.98,14.44415159]
[1748004331599,0.03607966,177.06,177.03,0.03663845]
[1748004332489,5.6449,177.13,177.03,0.03663845]
[1748004332684,5.16889034,177.17,177.02,107.38]
[1748004333099,5.6438,177.16,177.1,5.6454]
[1748004333301,5.16889034,177.17,177.07,179.08]
[1748004333504,0.03571504,177.15,177.11,0.04100415]
[1748004334300,5.645,177.12,177.11,0.04100415]
[1748004335504,5.64,177.12,176.97,179.04]
[1748004335693,300.84415159,177.14,176.97,179.04]
[1748004335895,5.6468,177.07,177.02,5.6479]
[1748004336204,300.84415159,177.14,176.97,179.04]
[1748004336396,0.03662095,177.06,177.03,0.03631939]
[1748004336596,0.04085508,177.06,177.03,0.03568641]
[1748004337602,5.6475,177.05,177.03,0.03568641]
[1748004337900,0.04085508,177.06,177.03,0.03568641]
[1748004338096,5.6475,177.04,177.03,0.03568641]
[1748004338605,0.04085508,177.06,177.03,0.03568641]
[1748004339703,0.04085508,177.06,177.03,5.68338641]
[1748004340100,0.04085508,177.06,177.03,0.03568641]
[1748004340302,179.04,177.14,177.07,5.6465]
[1748004340303,5.645,177.12,177.07,5.6465]
[1748004340503,179.04,177.14,177.03,286.34]
[1748004340703,179.04,177.14,177.04,1.8792]
[1748004341204,0.03632587,177.11,177.07,0.03848848]
[1748004341799,0.03632587,177.11,177.08,5.646]
[1748004342302,0.03632587,177.11,177.09,5.6457]
[1748004342503,0.03632587,177.11,177.07,0.03848848]
[1748004342907,0.03632587,177.11,177.1,5.6456]
[1748004343102,5.16889034,177.18,177.1,178.98]
[1748004343405,5.16889034,177.18,177.11,107.32]
[1748004343810,5.16889034,177.18,177.09,178.98]
[1748004344000,0.03882594,177.15,177.12,0.04278877]
[1748004345110,20.12297753,177.15,177.04,1.8792]
[1748004345400,14.44415159,177.16,177.0,178.98]
[1748004345601,14.44415159,177.16,177.05,5.6469]
[1748004345806,14.44415159,177.16,177.0,178.98]
[1748004346108,0.03793052,177.1,177.06,0.03586555]
[1748004346607,5.6468,177.07,177.06,0.03586555]
[1748004348009,0.03793052,177.1,177.06,0.03586555]
[1748004348907,5.6465,177.07,177.06,0.03586555]
[1748004349108,0.03793052,177.1,177.06,0.03586555]
[1748004350009,0.03793052,177.1,177.07,5.6464]
[1748004350406,0.03793052,177.1,177.06,0.03586555]
[1748004351212,5.6465,177.07,177.06,0.03586555]
[1748004351510,0.03793052,177.1,177.06,0.03586555]
[1748004351710,5.6465,177.07,177.06,0.03586555]
[1748004354313,0.03793052,177.1,177.06,0.03586555]
[1748004355817,5.6465,177.07,177.06,0.03586555]
[1748004357017,5.6462,177.08,177.06,0.03586555]
[1748004357216,0.03793052,177.1,177.06,0.03586555]
[1748004358018,5.6465,177.07,177.06,0.03586555]
[1748004359107,10.69464608,177.07,177.06,0.03586555]
[1748004361917,10.69464608,177.07,177.06,6.555e-05]
[1748004362118,16.33464608,177.07,177.06,6.555e-05]
[1748004362316,10.68814608,177.07,176.95,180.2081]
[1748004362523,5.04814608,177.07,176.95,180.2081]
[1748004362922,5.04814608,177.07,176.96,7.5283]
[1748004363126,5.04814608,177.07,176.96,1.8784]
[1748004363420,0.0376642,177.03,177.0,0.0369047]
[1748004364221,5.648,177.02,177.0,0.0369047]
[1748004364427,0.0376642,177.03,177.0,0.0369047]
[1748004364624,5.16889034,177.05,177.0,0.0369047]
[1748004364815,5.16889034,177.05,177.04,5.6474]
[1748004365128,13.68978743,177.17,177.04,193.40182056]
[1748004365427,13.68978743,177.17,177.05,2.0118]
[1748004365626,7.174e-05,177.13,177.09,0.04311936]
[1748004365919,13.68978743,177.17,177.16,5.6436]
[1748004366322,7.55778743,177.17,177.16,5.6436]
[1748004366521,9.48182056,177.29,177.16,5.6436]
[1748004366522,238.92329091,177.33,177.16,187.72182056]
[1748004366733,1.408e-05,177.22,177.2,9.48182056]
[1748004367033,2.348e-05,177.26,177.2,9.48182056]
[1748004367228,60.68329091,177.33,177.24,9.48182056]
[1748004367527,60.68329091,177.33,177.25,285.54]
[1748004367729,60.68329091,177.33,177.32,5.6385]
[1748004368326,0.03774568,177.34,177.32,112.9385]
[1748004368631,0.03715135,177.35,177.33,5.6381]
[1748004368832,0.03715135,177.35,177.32,107.341535]
[1748004369327,0.03715135,177.35,177.32,0.041535]
[1748004370133,5.6381,177.33,177.32,0.041535]
[1748004370325,0.03715135,177.35,177.32,0.041535]
[1748004371426,0.03715135,177.35,177.32,183.839635]
[1748004371732,0.03715135,177.35,177.32,178.201535]
[1748004372233,180.0119,177.48,177.32,178.201535]
[1748004372426,180.0119,177.48,177.32,178.16]
[1748004372621,180.0119,177.48,177.36,5.6371]
[1748004372827,180.0119,177.48,177.29,14.34521647]
[1748004373027,1.8519,177.48,177.33,14.34521647]
[1748004373233,0.04057019,177.42,177.39,0.04336853]
[1748004373438,5.6356,177.41,177.39,0.04336853]
[1748004373639,0.04057019,177.42,177.39,0.04336853]
[1748004374337,5.6384,177.33,177.28,774.8085]
[1748004374544,3.8995,177.41,177.28,774.8085]
[1748004374740,181.9995,177.41,177.28,487.66]
[1748004375243,0.04284,177.36,177.33,0.03907552]
[1748004375436,0.04284,177.36,177.25,285.24]
[1748004375637,14.34521647,177.38,177.23,285.22]
[1748004376235,289.1995,177.41,177.24,5.641]
[1748004376236,14.34521647,177.39,177.24,5.641]
[1748004376434,0.03662824,177.33,177.3,0.03856836]
[1748004376635,5.6388,177.31,177.3,0.03856836]
[1748004377940,5.64,177.31,177.2,178.04]
[1748004378151,14.34521647,177.28,177.14,2.0291]
[1748004378340,192.38521647,177.28,177.14,292.8933]
[1748004378647,192.38521647,177.28,177.14,2.0291]
[1748004378945,0.03590753,177.23,177.1,487.34]
[1748004379138,178.04,177.22,177.05,2.0291]
[1748004379341,5.6448,177.13,177.07,5.6464]
[1748004379649,14.34521647,177.2,177.06,285.2]
[1748004379944,0.03590929,177.15,177.11,0.03685341]
[1748004380345,0.03590929,177.15,177.13,5.6445]
[1748004380734,178.04,177.22,177.12,178.04]
[1748004380938,179.909,177.27,177.12,178.04]
[1748004381549,5.642,177.22,177.16,5.6433]
[1748004381842,0.04250701,177.21,177.17,0.04338864]
[1748004382042,5.6401,177.27,177.18,178.08]
[1748004382248,179.949,177.32,177.18,178.08]
[1748004382545,5.6408,177.25,177.18,178.08]
[1748004382949,0.0371413,177.23,177.2,0.03591865]
[1748004383143,0.0371413,177.23,177.2,5.67791865]
[1748004383345,179.949,177.32,177.2,0.03591865]
[1748004383646,5.6404,177.26,177.2,5.6423]
[1748004383947,179.949,177.32,177.18,178.08]
[1748004384448,0.03762402,177.27,177.23,0.0421741]
[1748004384638,0.03762402,177.27,177.24,178.06]
[1748004384838,178.06,177.37,177.24,178.06]
[1748004385042,178.06,177.37,177.25,1.9243]
[1748004385248,487.42,177.42,177.25,1.9243]
[1748004385446,665.48,177.42,177.25,1.9243]
[1748004385648,14.34521647,177.4,177.25,1.9243]
[1748004385946,0.04005003,177.34,177.31,0.04152229]
[1748004386352,5.6385,177.32,177.31,0.04152229]
[1748004386550,0.04005003,177.34,177.31,0.04152229]
[1748004387049,5.6385,177.32,177.31,0.04152229]
[1748004388747,0.04005003,177.34,177.31,0.04152229]
[1748004391352,0.04005003,177.34,177.31,5.68032229]
[1748004391552,0.04005003,177.34,177.31,0.04152229]
[1748004391950,5.6385,177.32,177.31,0.04152229]
[1748004394049,0.04005003,177.34,177.31,0.04152229]
[1748004394751,0.04005003,177.34,177.32,5.6383]
[1748004395053,0.04005003,177.34,177.31,0.04152229]
[1748004395557,177.2,177.44,177.31,0.04152229]
[1748004395750,5.6363,177.39,177.3,1.8757]
[1748004396052,177.2,177.44,177.3,1.8757]
[1748004396448,1.9762,177.45,177.3,1.8757]
[1748004396754,0.04106588,177.39,177.36,0.04244998]
[1748004396957,0.04106588,177.39,177.37,5.6368]
[1748004397264,0.04106588,177.39,177.36,0.04244998]
[1748004397455,0.04106588,177.39,177.38,5.6366]
[1748004397652,0.04106588,177.39,177.36,0.04244998]
[1748004397855,1.957,177.49,177.36,0.04244998]
[1748004398060,1.957,177.49,177.35,284.32]
[1748004398255,5.6351,177.43,177.35,284.32]
[1748004398759,5.6347,177.44,177.35,284.32]
[1748004399053,0.03573504,177.41,177.4,5.636]
[1748004399259,0.04017014,177.42,177.39,0.04208314]
[1748004399554,0.03917886,177.42,177.39,0.04208314]
[1748004399758,5.636,177.4,177.39,0.04208314]
[1748004399953,0.03917886,177.42,177.39,0.04208314]
[1748004402161,0.03917886,177.42,177.41,5.6357]
[1748004402461,2.0049,177.51,177.39,0.04208314]
[1748004402760,5.6338,177.47,177.43,5.635]
[1748004402957,1.89,177.52,177.38,14.34521647]
[1748004403157,1.9629,177.54,177.39,1.9938]
[1748004403465,5.633,177.5,177.45,5.6711594]
[1748004403661,1.9629,177.54,177.45,0.0370594]
[1748004403861,5.6332,177.49,177.45,5.6714594]
[1748004404358,1.9629,177.54,177.45,0.0370594]
[1748004404664,1.9629,177.54,177.46,5.634]
[1748004404958,1.9629,177.54,177.45,0.0370594]
[1748004405557,3.9692,177.58,177.45,0.0370594]
[1748004405752,3.9692,177.58,177.5,0.03639437]
[1748004406862,5.6324,177.52,177.5,0.03639437]
[1748004407256,3.9692,177.58,177.5,0.03639437]
[1748004407457,5.6325,177.51,177.5,0.03639437]
[1748004410660,5.6347,177.44,177.4,177.04]
[1748004410969,14.34521647,177.49,177.34,487.22]
[1748004411176,5.6365,177.39,177.35,5.6375]
[1748004411362,180.8971,177.48,177.34,487.22]
[1748004411559,0.03783845,177.43,177.39,0.03931403]
[1748004412172,5.6359,177.41,177.39,0.03931403]
[1748004412465,0.03783845,177.43,177.39,0.03931403]
[1748004413672,5.636,177.4,177.39,0.03931403]
[1748004414772,0.03783845,177.43,177.39,0.03931403]
[1748004415468,5.636,177.4,177.39,0.03931403]
[1748004415663,0.03783845,177.43,177.32,177.06]
[1748004415864,2.0116,177.42,177.32,177.06]
[1748004416674,0.03608299,177.39,177.35,0.04331791]
[1748004417281,5.6372,177.36,177.35,0.04331791]
[1748004418979,5.6391,177.31,177.27,176.14]
[1748004419172,14.34521647,177.41,177.27,176.14]
[1748004419479,5.6387,177.32,177.27,176.14]
[1748004419677,14.34521647,177.41,177.27,176.14]
[1748004419678,14.34521647,177.41,177.28,5.6396]
[1748004419879,0.04109127,177.36,177.33,0.04271439]
[1748004420075,5.6398,177.28,177.25,486.88]
[1748004420275,1.9156,177.35,177.25,486.88]
[1748004420580,5.6398,177.28,177.25,486.88]
[1748004420975,5.6404,177.26,177.25,0.03736126]
[1748004422285,5.6402,177.27,177.25,0.03736126]
[1748004422478,0.03753986,177.28,177.25,0.03736126]
[1748004422880,0.03753986,177.28,177.17,176.16]
[1748004423083,14.34521647,177.25,177.12,176.2]
[1748004423278,178.1788,177.24,177.1,283.3]
[1748004423775,178.1788,177.24,177.1,176.2]
[1748004423982,0.04011833,177.19,177.15,0.04142032]
[1748004424185,176.2,177.18,177.07,594.3]
[1748004424477,14.34521647,177.16,177.0,283.34]
[1748004424784,14.34521647,177.16,176.98,487.16]
[1748004424785,14.34521647,177.12,176.98,487.16]
[1748004424980,180.1365,177.11,176.98,487.16]
[1748004425284,0.03782449,177.06,177.03,0.03815471]
[1748004426285,5.6474,177.04,177.03,0.03815471]
[1748004428790,5.6495,176.98,176.96,107.14]
[1748004429087,190.70521647,177.04,176.92,1.9417]
[1748004429289,176.36,177.03,176.9,178.3191]
[1748004429581,178.3831,177.03,176.9,183.9709]
[1748004429782,0.03583347,176.98,176.95,0.04257625]
[1748004430380,190.70521647,177.08,176.95,107.26257625]
[1748004430681,5.6474,177.05,176.96,176.36]
[1748004430986,176.36,177.08,176.97,1.9062]
[1748004431187,5.6471,177.06,177.01,5.6483]
[1748004431485,0.03881171,177.05,177.02,0.04339104]
[1748004431881,0.03881171,177.05,176.91,285.4862]
[1748004432082,190.70521647,177.07,176.91,285.4862]
[1748004432583,14.34521647,177.03,176.91,176.36]
[1748004432885,5.65,176.96,176.95,0.04244272]
[1748004433084,14.38270335,176.99,176.85,176.4]
[1748004433278,14.34521647,176.95,176.83,107.26]
[1748004433782,190.74521647,176.95,176.83,107.26]
[1748004433989,0.03650317,176.91,176.87,0.03988992]
[1748004434481,5.6525,176.88,176.87,0.03988992]
[1748004435285,5.6549,176.81,176.71,564.26521647]
[1748004435585,176.48,176.89,176.77,5.6558]
[1748004435780,5.655,176.81,176.75,176.48]
[1748004435984,16.30271647,176.88,176.75,176.48]
[1748004436386,0.04187546,176.83,176.66,178.5026]
[1748004436587,14.34521647,176.8,176.67,1.9289]
[1748004436887,1.9575,176.79,176.67,1.9289]
[1748004437594,0.03560839,176.75,176.71,0.03830279]
[1748004438086,5.6577,176.72,176.71,0.03830279]
[1748004438692,0.03560839,176.75,176.71,0.03830279]
[1748004438984,0.03560839,176.75,176.71,5.69620279]
[1748004439190,0.03560839,176.75,176.71,0.03830279]
[1748004440091,176.58,176.82,176.71,0.03830279]
[1748004440295,176.58,176.89,176.72,176.58]
[1748004440485,178.5335,176.88,176.73,109.2259]
[1748004440692,1.9535,176.88,176.73,109.2259]
[1748004440981,0.03844874,176.82,176.79,0.04298815]
[1748004441189,2.0453,176.9,176.8,176.58]
[1748004441485,178.5651,176.94,176.81,107.36]
[1748004441684,178.5651,176.94,176.81,109.2558]
[1748004441886,14.34521647,176.91,176.77,284.04]
[1748004442085,5.6544,176.83,176.82,0.04041373]
[1748004444089,0.03662952,176.86,176.82,0.04041373]
[1748004445794,5.6541,176.83,176.82,0.04041373]
[1748004447293,175.52,176.85,176.74,1.8958]
[1748004447599,177.4439,176.85,176.74,1.8958]
[1748004447898,5.6563,176.77,176.74,1.8958]
[1748004448087,177.4439,176.85,176.72,282.94]
[1748004448292,0.04163655,176.81,176.77,0.04010977]
[1748004448691,5.6557,176.78,176.77,0.04010977]
[1748004450297,5.6576,176.73,176.68,3.9553]
[1748004450698,175.56,176.79,176.68,3.9553]
[1748004451296,0.03691069,176.75,176.72,0.04022228]
[1748004452098,0.03691069,176.75,176.64,664.04]
[1748004452297,189.90521647,176.79,176.64,664.04]
[1748004452599,5.6583,176.71,176.64,664.04]
[1748004452796,175.56,176.81,176.66,14.34521647]
[1748004453187,0.04293779,176.75,176.72,0.03604446]
[1748004453690,5.6573,176.73,176.72,0.03604446]
[1748004455403,175.62293779,176.75,176.64,175.56]
[1748004455594,175.58,176.75,176.64,175.56]
[1748004455794,5.6587,176.69,176.65,5.6598]
[1748004456301,0.03738161,176.69,176.67,5.6591]
[1748004456495,0.03738161,176.69,176.65,0.04062888]
[1748004457001,5.69628161,176.69,176.65,5.70022888]
[1748004457199,0.03738161,176.69,176.59,1.9817]
[1748004457501,175.65738161,176.69,176.52,48.25611147]
[1748004457698,175.62,176.69,176.52,223.87611147]
[1748004457998,175.62,176.71,176.52,820.11611147]
[1748004458200,0.04113747,176.63,176.62,5.6608]
[1748004458404,5.6987,176.74,176.6,283.1]
[1748004458700,5.6987,176.74,176.61,1.9784]
[1748004459195,5.6587,176.69,176.61,1.9784]
[1748004459398,0.03607885,176.67,176.63,0.04144187]
[1748004459602,3.9163,176.78,176.63,0.0377553]
[1748004459797,14.34521647,176.77,176.62,1.9568]
[1748004460488,14.34521647,176.77,176.68,0.03789998]
[1748004460697,5.6586,176.69,176.68,0.03789998]
[1748004461795,5.6583,176.7,176.68,0.03789998]
[1748004462004,0.03997272,176.71,176.68,0.03789998]
[1748004462501,5.6586,176.69,176.68,0.03789998]
[1748004462807,0.03997272,176.71,176.68,0.03789998]
[1748004463099,5.6585,176.7,176.68,0.03789998]
[1748004463305,0.03997272,176.71,176.68,0.03789998]
[1748004464097,5.6583,176.7,176.68,0.03789998]
[1748004464300,0.03997272,176.71,176.68,0.03789998]
[1748004464703,5.6583,176.7,176.68,0.03789998]
[1748004465098,5.6586,176.69,176.68,0.03789998]
[1748004468104,0.03997272,176.71,176.68,0.03789998]
[1748004468105,5.6583,176.7,176.68,0.03789998]
[1748004468308,0.03997272,176.71,176.68,0.03789998]
[1748004469005,175.68,176.8,176.68,0.03789998]
[1748004469301,175.68,176.8,176.68,107.52]
[1748004469507,175.68,176.8,176.65,175.68]
[1748004469704,14.34521647,176.78,176.65,175.68]
[1748004469904,1.9301,176.77,176.65,175.68]
[1748004470202,5.6583,176.7,176.69,0.03873666]
[1748004470404,0.04129696,176.73,176.69,0.03873666]
[1748004470805,0.04129696,176.73,176.69,5.69713666]
[1748004471006,0.04129696,176.73,176.69,0.03873666]
[1748004471801,0.04129696,176.73,176.7,5.6582]
[1748004472106,0.04129696,176.73,176.71,175.68]
[1748004472501,175.68,176.8,176.71,175.68]
[1748004472806,5.6566,176.76,176.72,5.6574]
[1748004473006,1.921,176.81,176.71,175.68]
[1748004473410,0.04178529,176.78,176.74,0.03576816]
[1748004474410,5.6567,176.75,176.74,0.03576816]
[1748004478610,5.6564,176.76,176.74,0.03576816]
[1748004478807,0.04178529,176.78,176.74,0.03576816]
[1748004479212,0.04178529,176.78,176.75,5.6564]
[1748004479412,0.04178529,176.78,176.74,0.03576816]
[1748004479810,5.6566,176.76,176.74,0.03576816]
[1748004480010,0.04178529,176.78,176.74,0.03576816]